[Event "360 One Wealth GP-3 2024"]
[Site "Mumbai"]
[Date "2024.02.09"]
[Round "6.9"]
[White "Reyaansh Venkat"]
[Black "Joglekar, Abhijit"]
[Result "1-0"]
[ECO "B00"]
[WhiteElo "1201"]
[BlackElo "1502"]
[Annotator "NA RC"]
[PlyCount "79"]
[EventDate "2024.02.04"]
[EventType "swiss"]
[EventCountry "IND"]
[SourceTitle "playchess.com"]
[Source "ChessBase"]
[SourceQuality "1"]
[TimeControl "5400+30"]

1. e4 {[%emt 0:00:06]} g6 {[%emt 0:02:43]} 2. d4 {[%emt 0:00:14]} Bg7 {[%emt 0:00:05]} 3. Nf3 {[%emt 0:00:28]} b6 {[%emt 0:00:18]} 4. Nc3 {[%emt 0:01:13]} Bb7 {[%emt 0:00:10]} 5. Bc4 {[%emt 0:02:12]} e6 {[%emt 0:01:00]} 6. Bg5 {[%emt 0:04:16]} f6 {[%emt 0:03:42]} 7. Bh4 {[%emt 0:04:25]} g5 {[%emt 0:07:21]} 8. Bg3 {[%emt 0:01:15]} a6 {[%emt 0:00:32]} 9. a4 {[%emt 0:05:11]} Ne7 {[%emt 0:09:09]} 10. O-O {[%emt 0:07:01]} Ng6 {[%emt 0:07:02]} 11. d5 {[%emt 0:09:42]} e5 {[%emt 0:00:33]} 12. d6 {[%emt 0:02:24]} c6 {[%emt 0:03:52]} 13. Qe2 {[%emt 0:12:31]} b5 {[%emt 0:01:11]} 14. axb5 {[%emt 0:04:48]} axb5 {[%emt 0:00:28]} 15. Bb3 {[%emt 0:01:57]} Rxa1 {[%emt 0:01:37]} 16. Rxa1 {[%emt 0:00:14]} b4 {[%emt 0:06:28]} 17. Qc4 {[%emt 0:01:53]} Rf8 {[%emt 0:00:23]} 18. Qxb4 {[%emt 0:00:41]} Ba6 {[%emt 0:02:40]} 19. Bc4 {[%emt 0:08:28]} Bxc4 {[%emt 0:11:14]} 20. Ra8 {[%emt 0:02:53]} Ba6 {[%emt 0:00:21]} 21. Rxb8 {[%emt 0:00:16]} Bc8 {[%emt 0:00:05]} 22. Na4 {[%emt 0:01:37]} g4 {[%emt 0:06:02]} 23. Nb6 {[%emt 0:10:30]} gxf3 {[%emt 0:01:36]} 24. Rxc8 {[%emt 0:00:20]} Qxc8 {[%emt 0:00:10]} 25. Nxc8 {[%emt 0:00:02]} f5 {[%emt 0:00:44]} 26. exf5 {[%emt 0:01:28]} Rxf5 {[%emt 0:00:02]} 27. Qe4 {[%emt 0:03:54]} Rf6 {[%emt 0:01:01]} 28. gxf3 {[%emt 0:03:05]} Kd8 {[%emt 0:00:37]} 29. Ne7 {[%emt 0:02:32]} Rxd6 {[%emt 0:00:48]} 30. Nxg6 {[%emt 0:00:13]} Rxg6 {[%emt 0:00:16]} 31. Qh4+ {[%emt 0:00:07]} Bf6 {[%emt 0:01:06]} 32. Qxh7 {[%emt 0:00:02]} Rg7 {[%emt 0:00:14]} 33. Qh8+ {[%emt 0:01:21]} Ke7 {[%emt 0:00:06]} 34. Kf1 {[%emt 0:00:44]} Ke6 {[%emt 0:06:04]} 35. Qh3+ {[%emt 0:00:30]} Kd6 {[%emt 0:00:21]} 36. Qf5 {[%emt 0:00:33]} Ke7 {[%emt 0:00:59]} 37. Bxe5 {[%emt 0:00:26]} Bxe5 {[%emt 0:00:11]} 38. Qxe5+ {[%emt 0:00:00]} Kf7 {[%emt 0:00:01]} 39. Qxg7+ {[%emt 0:00:11]} Kxg7 {[%emt 0:00:04]} 40. Ke2 {[%emt 0:00:12]} 1-0

[Event "360 One Wealth GP-3 2024"]
[Site "Mumbai"]
[Date "2024.02.09"]
[Round "6.10"]
[White "Kush Ajay Agarwal"]
[Black "Agraval, Shravana"]
[Result "1-0"]
[ECO "B71"]
[WhiteElo "1458"]
[BlackElo "1224"]
[Annotator "NA RC"]
[PlyCount "89"]
[EventDate "2024.02.04"]
[EventType "swiss"]
[EventCountry "IND"]
[SourceTitle "playchess.com"]
[Source "ChessBase"]
[SourceQuality "1"]
[TimeControl "5400+30"]

1. e4 {[%emt 0:02:10]} c5 {[%emt 0:00:09]} 2. Nf3 {[%emt 0:00:24]} d6 {[%emt 0:00:05]} 3. d4 {[%emt 0:00:26]} cxd4 {[%emt 0:00:06]} 4. Nxd4 {[%emt 0:00:04]} Nf6 {[%emt 0:00:19]} 5. Nc3 {[%emt 0:00:25]} g6 {[%emt 0:00:05]} 6. f4 {[%emt 0:00:16]} Nc6 {[%emt 0:00:12]} 7. Bb5 {[%emt 0:00:08]} Bd7 {[%emt 0:00:06]} 8. Be3 {[%emt 0:00:22]} Bg7 {[%emt 0:02:32]} 9. h3 {[%emt 0:00:58]} Rc8 {[%emt 0:05:18]} 10. O-O {[%emt 0:03:03]} O-O {[%emt 0:00:29]} 11. Be2 {[%emt 0:09:13]} Nxd4 {[%emt 0:12:01]} 12. Bxd4 {[%emt 0:00:14]} Be6 {[%emt 0:01:07]} 13. Qd2 {[%emt 0:03:07]} Bc4 {[%emt 0:02:53]} 14. Rad1 {[%emt 0:00:50]} Bxe2 {[%emt 0:00:30]} 15. Qxe2 {[%emt 0:00:06]} Qa5 {[%emt 0:08:20]} 16. a3 {[%emt 0:07:56]} Nh5 {[%emt 0:03:23]} 17. Kh2 {[%emt 0:06:51]} Bxd4 {[%emt 0:01:00]} 18. Rxd4 {[%emt 0:00:02]} Nxf4 {[%emt 0:02:19]} 19. Qd2 {[%emt 0:21:20]} Ne6 {[%emt 0:04:03]} 20. Nd5 {[%emt 0:02:01]} Qd8 {[%emt 0:02:57]} 21. Rd3 {[%emt 0:00:22]} Rc4 {[%emt 0:11:18]} 22. Qe1 {[%emt 0:05:32]} f6 {[%emt 0:09:18]} 23. c3 {[%emt 0:02:43]} Ng5 {[%emt 0:06:45]} 24. Re3 {[%emt 0:00:40]} e6 {[%emt 0:00:36]} 25. Nf4 {[%emt 0:04:06]} Qe7 {[%emt 0:04:18]} 26. h4 {[%emt 0:01:05]} Nf7 {[%emt 0:00:10]} 27. Qg3 {[%emt 0:01:05]} Ne5 {[%emt 0:01:09]} 28. Qh3 {[%emt 0:00:18]} f5 {[%emt 0:01:28]} 29. exf5 {[%emt 0:03:19]} gxf5 {[%emt 0:00:15]} 30. Rg3+ {[%emt 0:01:37]} Ng4+ {[%emt 0:01:02]} 31. Rxg4+ {[%emt 0:00:19]} fxg4 {[%emt 0:00:17]} 32. Qxg4+ {[%emt 0:00:03]} Kh8 {[%emt 0:00:15]} 33. Ng6+ {[%emt 0:02:20]} hxg6 {[%emt 0:00:14]} 34. Rxf8+ {[%emt 0:00:08]} Qxf8 {[%emt 0:00:29]} 35. Qxc4 {[%emt 0:00:02]} e5 {[%emt 0:00:58]} 36. Kg3 {[%emt 0:00:44]} Kg7 {[%emt 0:01:51]} 37. Qe4 {[%emt 0:02:28]} Qe7 {[%emt 0:01:39]} 38. Kf3 {[%emt 0:01:14]} Qf7+ {[%emt 0:01:23]} 39. Ke2 {[%emt 0:01:25]} Qb3 {[%emt 0:00:27]} 40. Qb4 {[%emt 0:00:14]} Qxb4 {[%emt 0:00:39]} 41. axb4 {[%emt 0:00:11]} b5 {[%emt 0:00:05]} 42. Kd3 {[%emt 0:00:15]} d5 {[%emt 0:00:12]} 43. b3 {[%emt 0:00:10]} Kf6 {[%emt 0:00:20]} 44. g4 {[%emt 0:00:06]} a6 {[%emt 0:00:40]} 45. c4 {[%emt 0:00:55]} 1-0

[Event "360 One Wealth GP-3 2024"]
[Site "Mumbai"]
[Date "2024.02.09"]
[Round "6.11"]
[White "Mukul Samir Rane"]
[Black "Ishaan A Tendolkar"]
[Result "0-1"]
[ECO "B01"]
[WhiteElo "1194"]
[BlackElo "1451"]
[Annotator "NA RC"]
[PlyCount "110"]
[EventDate "2024.02.04"]
[EventType "swiss"]
[EventCountry "IND"]
[SourceTitle "playchess.com"]
[Source "ChessBase"]
[SourceQuality "1"]
[TimeControl "5400+30"]

1. e4 {[%emt 0:00:36]} d5 {[%emt 0:01:05]} 2. Nf3 {[%emt 0:01:35]} dxe4 {[%emt 0:00:06]} 3. Ng5 {[%emt 0:00:06]} Nf6 {[%emt 0:00:03]} 4. Bc4 {[%emt 0:00:29]} e6 {[%emt 0:00:01]} 5. Nc3 {[%emt 0:00:47]} h6 {[%emt 0:01:51]} 6. Ngxe4 {[%emt 0:01:11]} Be7 {[%emt 0:00:08]} 7. O-O {[%emt 0:01:16]} Nbd7 {[%emt 0:00:18]} 8. d3 {[%emt 0:00:59]} Ne5 {[%emt 0:00:40]} 9. Bb3 {[%emt 0:01:28]} O-O {[%emt 0:02:40]} 10. Bf4 {[%emt 0:01:46]} Ng6 {[%emt 0:00:09]} 11. Bg3 {[%emt 0:00:54]} Nxe4 {[%emt 0:00:27]} 12. dxe4 {[%emt 0:01:36]} c6 {[%emt 0:08:28]} 13. Qe2 {[%emt 0:01:55]} e5 {[%emt 0:00:24]} 14. Rad1 {[%emt 0:01:06]} Qc7 {[%emt 0:00:08]} 15. Qh5 {[%emt 0:01:11]} Kh7 {[%emt 0:02:50]} 16. Qe2 {[%emt 0:04:38]} a5 {[%emt 0:03:32]} 17. a4 {[%emt 0:02:45]} Qb8 {[%emt 0:04:03]} 18. h3 {[%emt 0:03:42]} Bb4 {[%emt 0:07:21]} 19. Qe3 {[%emt 0:03:28]} b6 {[%emt 0:04:42]} 20. Ne2 {[%emt 0:09:31]} Ba6 {[%emt 0:00:33]} 21. c3 {[%emt 0:00:22]} Bc5 {[%emt 0:00:09]} 22. Qf3 {[%emt 0:00:48]} Qc7 {[%emt 0:01:07]} 23. Rfe1 {[%emt 0:00:55]} f6 {[%emt 0:16:32]} 24. Nd4 {[%emt 0:00:29]} Bxd4 {[%emt 0:00:18]} 25. cxd4 {[%emt 0:00:13]} Rad8 {[%emt 0:00:30]} 26. Qc3 {[%emt 0:02:04]} Rxd4 {[%emt 0:02:30]} 27. Qxd4 {[%emt 0:00:43]} exd4 {[%emt 0:00:04]} 28. Bxc7 {[%emt 0:00:15]} c5 {[%emt 0:01:22]} 29. Bg3 {[%emt 0:00:56]} c4 {[%emt 0:00:18]} 30. Ba2 {[%emt 0:00:13]} d3 {[%emt 0:00:08]} 31. Bc7 {[%emt 0:00:38]} Rc8 {[%emt 0:00:46]} 32. Bxb6 {[%emt 0:00:27]} Nf4 {[%emt 0:01:15]} 33. Be3 {[%emt 0:01:06]} Ne2+ {[%emt 0:00:07]} 34. Kf1 {[%emt 0:00:55]} c3 {[%emt 0:00:07]} 35. bxc3 {[%emt 0:13:34]} Nxc3 {[%emt 0:00:24]} 36. Kg1 {[%emt 0:00:16]} Nxa2 {[%emt 0:00:04]} 37. Rd2 {[%emt 0:03:45]} Nc3 {[%emt 0:05:03]} 38. f3 {[%emt 0:01:33]} Ne2+ {[%emt 0:00:19]} 39. Kf2 {[%emt 0:01:15]} Rb8 {[%emt 0:00:09]} 40. Bc5 {[%emt 0:01:59]} Kg8 {[%emt 0:06:31]} 41. Red1 {[%emt 0:02:18]} Rb3 {[%emt 0:00:30]} 42. Ra1 {[%emt 0:01:55]} Kf7 {[%emt 0:05:03]} 43. Ra3 {[%emt 0:00:29]} Nc1 {[%emt 0:00:06]} 44. Ke1 {[%emt 0:03:38]} Rb7 {[%emt 0:02:55]} 45. Be3 {[%emt 0:04:15]} Nb3 {[%emt 0:03:55]} 46. Rb2 {[%emt 0:03:33]} Bc4 {[%emt 0:00:01]} 47. Bd2 {[%emt 0:02:33]} Ke6 {[%emt 0:00:10]} 48. Kf2 {[%emt 0:00:36]} Kd6 {[%emt 0:00:28]} 49. g4 {[%emt 0:01:35]} g5 {[%emt 0:00:54]} 50. f4 {[%emt 0:00:38]} Kc5 {[%emt 0:00:30]} 51. Be3+ {[%emt 0:00:33]} Kb4 {[%emt 0:00:32]} 52. Raa2 {[%emt 0:00:21]} Kc3 {[%emt 0:00:19]} 53. Bd2+ {[%emt 0:01:56]} Nxd2 {[%emt 0:00:35]} 54. Rxd2 {[%emt 0:00:07]} Bxa2 {[%emt 0:00:14]} 55. Rxa2 {[%emt 0:00:06]} Rb2+ {[%emt 0:01:18]} 0-1

[Event "360 One Wealth GP-3 2024"]
[Site "Mumbai"]
[Date "2024.02.09"]
[Round "6.12"]
[White "Arnav Ashish Thatte"]
[Black "Tanmay Sanjay More"]
[Result "1-0"]
[ECO "C68"]
[WhiteElo "1280"]
[BlackElo "1156"]
[Annotator "NA RC"]
[PlyCount "71"]
[EventDate "2024.02.04"]
[EventType "swiss"]
[EventCountry "IND"]
[SourceTitle "playchess.com"]
[Source "ChessBase"]
[SourceQuality "1"]
[TimeControl "5400+30"]

1. e4 {[%emt 0:00:29]} e5 {[%emt 0:00:05]} 2. Nf3 {[%emt 0:00:24]} Nc6 {[%emt 0:00:08]} 3. Bb5 {[%emt 0:00:19]} a6 {[%emt 0:00:11]} 4. Bxc6 {[%emt 0:00:27]} dxc6 {[%emt 0:00:12]} 5. h3 {[%emt 0:00:12]} Bd6 {[%emt 0:00:10]} 6. O-O {[%emt 0:00:53]} Nf6 {[%emt 0:00:05]} 7. Re1 {[%emt 0:00:16]} O-O {[%emt 0:00:55]} 8. d4 {[%emt 0:00:30]} Re8 {[%emt 0:00:06]} 9. dxe5 {[%emt 0:00:03]} Bb4 {[%emt 0:01:26]} 10. Qxd8 {[%emt 0:00:48]} Rxd8 {[%emt 0:00:05]} 11. c3 {[%emt 0:00:10]} Be7 {[%emt 0:01:02]} 12. exf6 {[%emt 0:00:30]} Bxf6 {[%emt 0:00:02]} 13. Bf4 {[%emt 0:00:09]} Be6 {[%emt 0:00:06]} 14. Bxc7 {[%emt 0:00:33]} Rd7 {[%emt 0:00:02]} 15. Be5 {[%emt 0:00:21]} Be7 {[%emt 0:00:11]} 16. Nbd2 {[%emt 0:01:32]} Rad8 {[%emt 0:00:01]} 17. Nd4 {[%emt 0:00:23]} c5 {[%emt 0:01:14]} 18. Nxe6 {[%emt 0:00:23]} fxe6 {[%emt 0:00:05]} 19. Nf3 {[%emt 0:00:06]} Bf6 {[%emt 0:00:14]} 20. Bxf6 {[%emt 0:00:11]} gxf6 {[%emt 0:00:04]} 21. Kf1 {[%emt 0:00:08]} b5 {[%emt 0:00:34]} 22. Ke2 {[%emt 0:00:12]} Rg7 {[%emt 0:00:07]} 23. g3 {[%emt 0:00:17]} b4 {[%emt 0:00:38]} 24. c4 {[%emt 0:01:30]} a5 {[%emt 0:00:19]} 25. Rad1 {[%emt 0:00:05]} Ra8 {[%emt 0:00:21]} 26. Rd6 {[%emt 0:00:17]} Re7 {[%emt 0:00:51]} 27. Rc6 {[%emt 0:00:12]} f5 {[%emt 0:00:20]} 28. e5 {[%emt 0:00:27]} a4 {[%emt 0:00:21]} 29. Rd1 {[%emt 0:00:23]} Ra5 {[%emt 0:00:18]} 30. Rdd6 {[%emt 0:00:13]} Kf7 {[%emt 0:01:50]} 31. Ng5+ {[%emt 0:00:43]} Kg6 {[%emt 0:00:02]} 32. Rxe6+ {[%emt 0:00:22]} Rxe6 {[%emt 0:00:04]} 33. Nxe6 {[%emt 0:00:08]} Kh5 {[%emt 0:00:56]} 34. Nf4+ {[%emt 0:00:47]} Kg5 {[%emt 0:00:11]} 35. f3 {[%emt 0:00:06]} b3 {[%emt 0:00:06]} 36. h4# {[%emt 0:00:05]} 1-0

[Event "360 One Wealth GP-3 2024"]
[Site "Mumbai"]
[Date "2024.02.09"]
[Round "6.13"]
[White "Vihaan Ravi Rao"]
[Black "Devesh Anil Ambre"]
[Result "1/2-1/2"]
[ECO "A36"]
[WhiteElo "1184"]
[BlackElo "1198"]
[Annotator "NA RC"]
[PlyCount "116"]
[EventDate "2024.02.04"]
[EventType "swiss"]
[EventCountry "IND"]
[SourceTitle "playchess.com"]
[Source "ChessBase"]
[SourceQuality "1"]
[TimeControl "5400+30"]

1. e4 {[%emt 0:39:56]} c5 {[%emt 0:00:05]} 2. c4 {[%emt 0:00:07]} Nc6 {[%emt 0:00:12]} 3. Nc3 {[%emt 0:00:11]} g6 {[%emt 0:00:17]} 4. g3 {[%emt 0:00:13]} Bg7 {[%emt 0:00:18]} 5. Bg2 {[%emt 0:00:13]} a6 {[%emt 0:00:14]} 6. Nge2 {[%emt 0:00:38]} Rb8 {[%emt 0:00:28]} 7. a4 {[%emt 0:00:42]} d6 {[%emt 0:00:40]} 8. O-O {[%emt 0:01:13]} h5 {[%emt 0:01:18]} 9. h4 {[%emt 0:01:39]} Nf6 {[%emt 0:02:21]} 10. d3 {[%emt 0:00:56]} Bd7 {[%emt 0:04:05]} 11. f4 {[%emt 0:50:12]} Qc8 {[%emt 1:26:02]} 12. Rb1 {[%emt 0:00:00]} Ng4 {[%emt 0:00:30]} 13. Nd5 {[%emt 0:01:00]} b5 14. axb5 {[%emt 0:07:50]} axb5 {[%emt 0:00:09]} 15. b3 {[%emt 0:03:19]} Nd4 {[%emt 0:01:21]} 16. Ne3 {[%emt 0:09:46]} bxc4 {[%emt 0:04:27]} 17. dxc4 {[%emt 0:01:19]} Ba4 {[%emt 0:04:16]} 18. Nxd4 {[%emt 0:05:22]} Bxd4 {[%emt 0:02:52]} 19. Qd3 {[%emt 0:02:03]} O-O {[%emt 0:06:17]} 20. Kh1 {[%emt 0:04:14]} Bd7 {[%emt 0:02:37]} 21. Nxg4 {[%emt 0:02:34]} Bxg4 {[%emt 0:00:18]} 22. f5 {[%emt 0:01:22]} Bg7 {[%emt 0:06:45]} 23. fxg6 {[%emt 0:02:21]} fxg6 {[%emt 0:00:39]} 24. Bg5 {[%emt 0:00:54]} Qe6 {[%emt 0:08:30]} 25. Kh2 {[%emt 0:08:56]} Be5 {[%emt 0:04:15]} 26. Bh6 {[%emt 0:02:37]} Rf6 {[%emt 0:00:36]} 27. Bg5 {[%emt 0:04:04]} Rxf1 {[%emt 0:01:33]} 28. Rxf1 {[%emt 0:01:05]} Rf8 {[%emt 0:00:47]} 29. Rxf8+ {[%emt 0:02:51]} Kxf8 {[%emt 0:00:07]} 30. Bf3 {[%emt 0:01:37]} Ke8 {[%emt 0:02:55]} 31. Bxg4 {[%emt 0:02:42]} Qxg4 {[%emt 0:00:23]} 32. Kg2 {[%emt 0:00:51]} Kd7 {[%emt 0:00:59]} 33. Qf3 {[%emt 0:01:54]} Kc6 {[%emt 0:05:13]} 34. Qxg4 {[%emt 0:02:02]} hxg4 {[%emt 0:00:17]} 35. Bxe7 {[%emt 0:00:27]} Kb6 {[%emt 0:01:16]} 36. Bd8+ {[%emt 0:00:37]} Kc6 {[%emt 0:00:49]} 37. Ba5 {[%emt 0:01:07]} Kb7 {[%emt 0:00:14]} 38. Bd2 {[%emt 0:01:23]} Kb6 {[%emt 0:00:51]} 39. Bf4 {[%emt 0:00:36]} Ka5 {[%emt 0:00:36]} 40. Bd2+ {[%emt 0:00:37]} Kb6 {[%emt 0:00:07]} 41. Be1 {[%emt 0:00:54]} Ka6 {[%emt 0:01:15]} 42. Kf2 {[%emt 0:00:31]} Kb6 {[%emt 0:00:22]} 43. Ke2 {[%emt 0:00:21]} Kc6 {[%emt 0:00:24]} 44. Kd3 {[%emt 0:01:03]} Kb6 {[%emt 0:01:07]} 45. Kc2 {[%emt 0:00:14]} Ka6 {[%emt 0:00:16]} 46. Kb1 {[%emt 0:00:36]} Kb6 {[%emt 0:00:21]} 47. Ka2 {[%emt 0:00:19]} Ka6 {[%emt 0:00:22]} 48. Ka3 {[%emt 0:00:27]} Kb6 {[%emt 0:00:27]} 49. b4 {[%emt 0:01:16]} cxb4+ {[%emt 0:01:18]} 50. Kxb4 {[%emt 0:00:26]} Kc6 {[%emt 0:00:13]} 51. Bf2 {[%emt 0:00:39]} Bb2 {[%emt 0:00:24]} 52. Kb3 {[%emt 0:02:24]} Be5 {[%emt 0:00:43]} 53. Kc2 {[%emt 0:00:20]} Bf6 {[%emt 0:00:31]} 54. Kd3 {[%emt 0:01:29]} Be5 {[%emt 0:00:15]} 55. Be1 {[%emt 0:00:35]} Kc5 {[%emt 0:00:17]} 56. Bf2+ {[%emt 0:00:50]} Kb4 {[%emt 0:00:34]} 57. Be1+ {[%emt 0:01:11]} Kc5 58. Bf2+ Kb4 1/2-1/2

[Event "360 One Wealth GP-3 2024"]
[Site "Mumbai"]
[Date "2024.02.11"]
[Round "7.1"]
[White "Kulkarni, Vikramaditya"]
[Black "Mishra Sanjeev"]
[Result "1-0"]
[ECO "C48"]
[WhiteElo "2193"]
[BlackElo "1683"]
[Annotator "TA"]
[PlyCount "109"]
[EventDate "2024.02.04"]
[EventType "swiss"]
[EventCountry "IND"]
[SourceTitle "playchess.com"]
[Source "ChessBase"]
[SourceQuality "1"]
[TimeControl "5400+30"]

{[%evp 13,109,-10,-14,-9,7,11,20,20,16,18,12,5,33,27,37,15,25,25,31,21,30,11,19,14,20,10,16,12,16,9,54,19,35,34,33,19,25,11,14,13,11,8,0,-5,-12,-7,0,-2,18,23,56,51,55,43,47,0,30,27,24,23,32,0,24,12,35,12,26,29,37,41,75,0,6,0,133,133,114,119,414,423,418,402,442,405,445,389,508,509,477,389,417,407,577,580,596,592,559,524]} 1. e4 {[%emt 0:05:30]} e5 {[%emt 0:00:01]} 2. Nf3 {[%emt 0:00:24]} Nc6 {[%emt 0:00:32]} 3. Bb5 {[%emt 0:00:23]} Nf6 {[%emt 0:00:42]} 4. O-O {[%emt 0:00:34]} Bc5 {[%emt 0:00:37]} 5. Nc3 {[%emt 0:03:03]} O-O {[%emt 0:01:52]} 6. d3 {[%emt 0:07:44]} d6 {[%emt 0:02:15]} 7. Bg5 {[%emt 0:06:44]} h6 {[%emt 0:05:25]} 8. Bh4 {[%emt 0:02:18]} Bg4 {[%emt 0:01:49]} 9. Bxc6 {[%emt 0:00:24]} bxc6 {[%emt 0:00:01]} 10. h3 {[%emt 0:00:15] The position is equal.} Bxf3 {[%emt 0:00:51]} 11. Qxf3 {[%emt 0:02:31]} g5 {[%emt 0:00:04]} 12. Bg3 {[%emt 0:00:15]} Rb8 {[%emt 0:03:06]} 13. Na4 {[%emt 0:04:35] [#] And now Nxc5 would win.} Bb6 {[%emt 0:00:26]} 14. Rad1 {[%emt 0:01:14]} Re8 {[%emt 0:04:46]} 15. c3 {[%emt 0:03:53]} Re6 {[%emt 0:01:37]} 16. Rfe1 {[%emt 0:10:10]} Qe7 {[%emt 0:03:00]} 17. Rd2 {[%emt 0:00:25]} Re8 {[%emt 0:02:10]} 18. Qd1 {[%emt 0:00:13]} Kg7 {[%emt 0:01:37]} 19. Bh2 {[%emt 0:02:13]} Nd7 {[%emt 0:02:58][%cal Bf6d7,Bd7b6,Bb6d5][%mdl 32]} 20. Kh1 {[%emt 0:02:19]} Qf8 {[%emt 0:03:35]} 21. Nxb6 {[%emt 0:07:39]} Nxb6 {[%emt 0:07:31]} 22. Rde2 {[%emt 0:07:34]} f5 {[%emt 0:03:25]} 23. exf5 {[%emt 0:00:02]} Qxf5 {[%emt 0:00:02]} 24. f3 {[%emt 0:07:15]} Nd5 {[%emt 0:01:22]} 25. Qa4 {[%emt 0:01:29]} Qxd3 {[%emt 0:19:56]} 26. Qxc6 {[%emt 0:04:42]} R8e7 {[%emt 0:00:53]} 27. Qa4 {[%emt 0:01:01]} a6 {[%emt 0:04:11]} 28. Qe4 {[%emt 0:04:18]} Qxe4 {[%emt 0:05:14]} 29. Rxe4 {[%emt 0:01:01]} Nb6 {[%emt 0:02:34]} 30. c4 {[%emt 0:05:46]} Kf6 {[%emt 0:00:32]} 31. Bg1 {[%emt 0:01:10]} d5 {[%emt 0:01:16]} 32. cxd5 {[%emt 0:00:25]} Nxd5 {[%emt 0:00:01]} 33. Rc4 {[%emt 0:04:06]} Rd7 {[%emt 0:01:23]} 34. g3 {[%emt 0:01:48]} (34. Kh2 $14) 34... Nb6 35. Rc2 {[%emt 0:00:32]} Red6 36. Rec1 {[%emt 0:00:34]} Nd5 {[%emt 0:02:51]} 37. a3 Re6 {[%emt 0:00:47]} 38. Rc4 Ke7 {[%emt 0:00:30]} 39. Bc5+ {[%emt 0:01:30]} Kd8 {[%emt 0:00:30]} 40. R1c2 {[%emt 0:00:30]} Kc8 {[%emt 0:00:30]} 41. Re2 {[%emt 0:00:30]} Nf6 {[%emt 0:00:30]} 42. Bb4 {[%emt 0:00:30]} (42. Bd4 $16) 42... Rd3 $11 {[%emt 0:00:30]} 43. Kg2 {[%emt 0:00:30]} Nd7 {[%emt 0:00:30]} (43... Nd5 $11 {remains equal.} 44. Rce4 Rf6) 44. Rec2 $16 {[%emt 0:00:30]} c5 {[%emt 0:00:30]} 45. Bxc5 {[%emt 0:00:30]} Rc6 $2 {[%emt 0:00:30][%mdl 8192] [#] This move loses the game for Black.} (45... Nxc5 $16 {was necessary.} 46. Rxc5+ Kb7 47. Rc7+ Kb6) 46. Bf8 $1 $18 {[%emt 0:00:30][%mdl 512]} Rxc4 {[%emt 0:00:30]} 47. Rxc4+ {[%emt 0:00:30][%mdl 4096] Endgame. KRB-KRN} Kb7 {[%emt 0:00:30]} 48. Bxh6 {[%emt 0:00:30]} Rd2+ {[%emt 0:00:30]} 49. Kf1 {[%emt 0:00:30]} Nb6 {[%emt 0:00:30]} 50. Rb4 {[%emt 0:00:30]} a5 {[%emt 0:00:30]} 51. Rb5 {[%emt 0:00:30]} Kc6 {[%emt 0:00:30]} 52. Bxg5 {[%emt 0:00:30]} ({Much less strong is} 52. Rxa5 Nc4) 52... Rc2 {[%emt 0:00:30]} (52... Rd1+ $142 53. Ke2 Rb1) 53. Rxe5 {[%emt 0:00:30] White is clearly winning.} Rxb2 {[%emt 0:00:30]} 54. Rxa5 {[%emt 0:00:30]} Nc4 {[%emt 0:00:30]} 55. Rf5 {[%emt 0:00:30] Weighted Error Value: White=0.13 (very precise) /Black=0.28 (precise) .  Loses game:     	---       	Black=1      Mistake:       	White=2     	Black=2      Inaccurate:     	White=2     	Black=6      OK:         	White=15    	Black=18     Best:        	White=3     	---        Brilliant:      	White=1     	---} 1-0

[Event "360 One Wealth GP-3 2024"]
[Site "Mumbai"]
[Date "2024.02.11"]
[Round "7.2"]
[White "Bartakke, Amardeep S."]
[Black "Soni Deepak R"]
[Result "1-0"]
[ECO "B18"]
[WhiteElo "1961"]
[BlackElo "1445"]
[Annotator "TA"]
[PlyCount "68"]
[EventDate "2024.02.04"]
[EventType "swiss"]
[EventCountry "IND"]
[SourceTitle "playchess.com"]
[Source "ChessBase"]
[SourceQuality "1"]
[TimeControl "5400+30"]

{[%evp 17,68,-7,0,-6,27,18,36,12,28,0,0,0,0,0,0,0,0,-11,0,0,-8,-33,-30,-37,-37,-33,100,95,99,100,124,141,125,131,253,245,343,341,322,315,518,528,537,519,512,531,762,773,971,947,2564,0,646]} 1. e4 {[%emt 0:40:58]} c6 {[%emt 0:00:58]} 2. d4 {[%emt 0:00:04]} d5 {[%emt 0:00:11]} 3. Nd2 {[%emt 0:00:02][%cal Bb1d2,Bd2e4,Be4g3][%mdl 32]} dxe4 {[%emt 0:00:15]} 4. Nxe4 {[%emt 0:00:03]} Bf5 {[%emt 0:00:14]} 5. Ng3 {[%emt 0:00:02]} Bg6 {[%emt 0:00:12]} 6. Bc4 {[%emt 0:00:07]} e6 {[%emt 0:00:07]} 7. N1e2 {[%emt 0:00:05]} Nf6 {[%emt 0:00:18]} 8. Nf4 {[%emt 0:00:07]} Bd6 {[%emt 0:11:17]} 9. Bb3 {[%emt 0:00:39]} Qc7 {[%emt 0:02:22]} 10. Qf3 {[%emt 0:01:39]} Bxf4 {[%emt 0:08:33]} 11. Bxf4 {[%emt 0:00:45]} Qb6 {[%emt 0:01:03] Black is weak on the dark squares} 12. Rd1 {[%emt 0:02:44] White is slightly better.} O-O {[%emt 0:02:26]} 13. O-O {[%emt 0:02:03] Active counter play!} a5 {[%emt 0:06:18]} 14. a4 {[%emt 0:02:43]} Nbd7 {[%emt 0:04:06]} 15. h4 {[%emt 0:04:55]} h6 {[%emt 0:07:04]} 16. h5 {[%emt 0:02:57]} Bh7 {[%emt 0:00:17]} 17. Bd6 {[%emt 0:02:51]} Rfe8 {[%emt 0:02:02]} 18. Rfe1 {[%emt 0:01:34]} Rac8 {[%emt 0:06:03]} 19. Be5 {[%emt 0:10:12]} c5 {[%emt 0:18:08]} (19... Qb4 {is more complex.} 20. Bf4 b5 21. Bd2 Qxd4 22. Bxh6 Qh4) 20. dxc5 {[%emt 0:02:16]} Nxe5 {[%emt 0:00:43]} 21. Rxe5 {[%emt 0:00:39]} Rxc5 {[%emt 0:00:24]} (21... Qb4 $15 {stays ahead.}) 22. Rxc5 $16 {[%emt 0:05:44]} Qxc5 {[%emt 0:00:03]} 23. Qxb7 {[%emt 0:00:02]} Nxh5 {[%emt 0:03:31]} 24. Qb5 {[%emt 0:00:39]} Qxb5 {[%emt 0:02:56]} 25. axb5 {[%emt 0:00:24][%cal Ba4b5,Bb5b6,Bb6b7][%mdl 32]} Nf4 {[%emt 0:01:02]} (25... Nxg3 $16 26. fxg3 Kf8) 26. b6 {[%emt 0:02:12]} g5 {[%emt 0:01:21]} 27. Rd7 {[%emt 0:00:36]} ({Resist} 27. b7 h5 28. f3 Rb8) 27... Rb8 {[%emt 0:01:32]} 28. b7 {[%emt 0:00:22]} h5 $2 {[%emt 0:00:24]} (28... Bg6 29. c4 Nd3) 29. c4 $18 {[%emt 0:04:12]} Nd3 {[%emt 0:03:25]} 30. Rc7 {[%emt 0:03:09] [#] Against Nc5. And now Rc8+ would win.} Kg7 {[%emt 0:00:17]} 31. Nxh5+ {[%emt 0:00:20]} Kh6 {[%emt 0:01:26]} 32. Nf6 {[%emt 0:00:31]} ({Not} 32. Rxf7 Bg6 33. Rc7 Bxh5 $14) 32... Bg6 {[%emt 0:01:20]} 33. Nd7 {[%emt 0:00:41]} Bh7 {[%emt 0:02:41]} 34. Nf6 $2 {[#]} (34. Nxb8 $18 {Nd7 would kill now.} Nb4 35. Nc6 (35. Rxf7 Be4 $18)) 34... Ne5 $2 {[%emt 0:00:01][%mdl 8192] Weighted Error Value: White=0.24 (precise) /Black=0.43.  Mistake:       	---       	Black=3      Inaccurate:     	White=1     	Black=3      OK:         	White=9     	Black=9      Best:        	White=3     	Black=1} (34... Bg6 $11 35. Nd7 Rxb7) 1-0